fUSD/lending_fUSD_20250211
["ID","MTS","AMOUNT","RATE_DAILY","PERIOD"]
[352733400,1739283043278,-500.0,0.00010958,2]
[352733401,1739283043288,-1079.43,0.00010958,2]
[352733402,1739283043297,-500.0,0.00010958,2]
[352733403,1739283043307,-771.17,0.00010958,2]
[352733404,1739283043316,-649.18551669,0.00010958,2]
[352733405,1739283043325,-500.0,0.00010958,2]
[352733406,1739283043335,-500.0,0.00010958,2]
[352733407,1739283043344,-500.0,0.00010958,2]
[352733408,1739283043354,-500.0,0.00010958,2]
[352733410,1739283043363,-500.0,0.00010958,2]
[352733411,1739283043372,-500.0,0.00010958,2]
[352733412,1739283043382,-500.0,0.00010958,2]
[352733413,1739283043391,-638.45391602,0.00010958,2]
[352733414,1739283043402,-621.59,0.00010958,2]
[352733415,1739283043411,-500.0,0.00010958,2]
[352733416,1739283043421,-500.0,0.00010958,2]
[352733417,1739283043431,-500.0,0.00010958,2]
[352733418,1739283043440,-500.0,0.00010958,2]
[352733419,1739283043450,-500.0,0.00010958,2]
[352733420,1739283043459,-500.0,0.00010958,2]
[352733422,1739283043468,-504.77453799,0.00010958,2]
[352733424,1739283043478,-502.71494938,0.00010958,2]
[352733426,1739283043487,-548.00675095,0.00010958,2]
[352733428,1739283043496,-500.0,0.00010958,2]
[352733430,1739283043506,-500.0,0.00010958,2]
[352733431,1739283043515,-500.0,0.00010958,2]
[352733432,1739283043524,-500.0,0.00010958,2]
[352733433,1739283043533,-500.0,0.00010958,2]
[352733434,1739283043546,-500.0,0.00010958,2]
[352733435,1739283043555,-501.35915371,0.00010958,2]
[352733436,1739283043564,-500.0,0.00010958,2]
[352733437,1739283043573,-500.0,0.00010958,2]
[352733438,1739283043583,-500.0,0.00010958,2]
[352733439,1739283043592,-772.38,0.00010958,2]
[352733440,1739283043602,-500.0,0.00010958,2]
[352733441,1739283043612,-637.38,0.00010958,2]
[352733442,1739283043624,-500.0,0.00010958,2]
[352733443,1739283043633,-500.0,0.00010958,2]
[352733444,1739283043642,-500.0,0.00010958,2]
[352733445,1739283043651,-564.18,0.00010958,2]
[352733446,1739283043662,-500.0,0.00010958,2]
[352733447,1739283043671,-500.0,0.00010958,2]
[352733448,1739283043680,-500.0,0.00010958,2]
[352733449,1739283043689,-500.0,0.00010958,2]
[352733450,1739283043702,-500.0,0.00010958,2]
[352733451,1739283043712,-500.0,0.00010958,2]
[352733452,1739283043721,-726.26,0.00010958,2]
[352733453,1739283043731,-562.5,0.00010958,2]
[352733454,1739283043740,-500.0,0.00010958,2]
[352733455,1739283043749,-500.0,0.00010958,2]
[352733456,1739283043759,-500.0,0.00010958,2]
[352733457,1739283043768,-467.19784368,0.00010958,2]
[352733458,1739283043778,-500.0,0.00010958,2]
[352733459,1739283043790,-500.0,0.00010958,2]
[352733460,1739283043800,-500.0,0.00010958,2]
[352733461,1739283043810,-500.0,0.00010958,2]
[352733462,1739283043819,-500.0,0.00010958,2]
[352733463,1739283043829,-500.0,0.00010958,2]
[352733464,1739283043838,-500.0,0.00010958,2]
[352733465,1739283043847,-500.0,0.00010958,2]
[352733466,1739283043856,-657.71,0.00010958,2]
[352733467,1739283043866,-500.0,0.00010958,2]
[352733468,1739283043875,-505.59214003,0.00010958,2]
[352733469,1739283043885,-153.35418015,0.00010958,2]
[352733470,1739283043894,-545.49,0.00010958,2]
[352733471,1739283043903,-500.0,0.00010958,2]
[352733472,1739283043912,-503.17843677,0.00010958,2]
[352733473,1739283043922,-947.55,0.00010958,2]
[352733474,1739283043932,-500.0,0.00010958,2]
[352733475,1739283043942,-500.0,0.00010958,2]
[352733476,1739283043951,-500.0,0.00010958,2]
[352733477,1739283043960,-500.0,0.00010958,2]
[352733478,1739283043970,-500.0,0.00010958,2]
[352733479,1739283043979,-500.0,0.00010958,2]
[352733480,1739283043989,-500.0,0.00010958,2]
[352733481,1739283043998,-500.0,0.00010958,2]
[352733482,1739283044008,-611.03932591,0.00010958,2]
[352733483,1739283044017,-500.0,0.00010958,2]
[352733484,1739283044027,-500.0,0.00010958,2]
[352733485,1739283044040,-500.0,0.00010958,2]
[352733486,1739283044049,-500.0,0.00010958,2]
[352733487,1739283044058,-274.89920895,0.00010958,2]
[352733488,1739283044068,-500.0,0.00010958,2]
[352733489,1739283044077,-500.0,0.00010958,2]
[352733490,1739283044086,-500.0,0.00010958,2]
[352733491,1739283044096,-500.0,0.00010958,2]
[352733492,1739283044105,-500.0,0.00010958,2]
[352733493,1739283044115,-284.31008699,0.00010958,2]
[352733494,1739283044125,-500.0,0.00010958,2]
[352733495,1739283044134,-791.02,0.00010958,2]
[352733496,1739283044143,-594.78,0.00010958,2]
[352733497,1739283044153,-500.0,0.00010958,2]
[352733498,1739283044162,-500.0,0.00010958,2]
[352733499,1739283044171,-500.0,0.00010958,2]
[352733500,1739283044181,-500.0,0.00010958,2]
[352733501,1739283044190,-500.0,0.00010958,2]
[352733502,1739283044200,-899.13,0.00010958,2]
[352733503,1739283044209,-500.0,0.00010958,2]
[352733504,1739283044218,-500.0,0.00010958,2]
[352733505,1739283044407,-500.00461034,0.00010958,2]
[352733506,1739283044417,-503.43760617,0.00010958,2]
[352733507,1739283044426,-500.0,0.00010958,2]
[352733508,1739283044435,-501.94024397,0.00010958,2]
[352733509,1739283044444,-500.0,0.00010958,2]
[352733510,1739283044454,-500.0,0.00010958,2]
[352733511,1739283044463,-500.0,0.00010958,2]
[352733512,1739283044471,-723.56,0.00010958,2]
[352733513,1739283044480,-501.51211345,0.00010958,2]
[352733514,1739283044490,-500.0,0.00010958,2]
[352733515,1739283044499,-500.0,0.00010958,2]
[352733516,1739283044509,-502.53707953,0.00010958,2]
[352733517,1739283044518,-500.0,0.00010958,2]
[352733518,1739283044528,-623.3,0.00010958,2]
[352733519,1739283044538,-500.0,0.00010958,2]
[352733520,1739283044547,-500.0,0.00010958,2]
[352733521,1739283044557,-500.0,0.00010958,2]
[352733522,1739283044567,-500.0,0.00010958,2]
[352733523,1739283044576,-504.39950263,0.00010958,2]
[352733524,1739283044585,-500.0,0.00010958,2]
[352733525,1739283044595,-500.0,0.00010958,2]
[352733526,1739283044607,-500.0,0.00010958,2]
[352733527,1739283044617,-500.0,0.00010958,2]
[352733528,1739283044627,-602.04,0.00010958,2]
[352733529,1739283044636,-500.0,0.00010958,2]
[352733530,1739283044647,-500.0,0.00010958,2]
[352733531,1739283044656,-634.43,0.00010958,2]
[352733532,1739283044666,-500.0,0.00010958,2]
[352733533,1739283044676,-500.0,0.00010958,2]
[352733534,1739283044688,-500.0,0.00010958,2]
[352733535,1739283044698,-500.0,0.00010958,2]
[352733536,1739283044708,-689.47,0.00010958,2]
[352733537,1739283044717,-500.0,0.00010958,2]
[352733538,1739283044726,-500.0,0.00010958,2]
[352733539,1739283044735,-500.0,0.00010958,2]
[352733540,1739283044745,-500.0,0.00010958,2]
[352733541,1739283044755,-500.0,0.00010958,2]
[352733542,1739283044764,-500.0,0.00010958,2]
[352733543,1739283044774,-500.0,0.00010958,2]
[352733544,1739283044784,-500.0,0.00010958,2]
[352733545,1739283044795,-500.0,0.00010958,2]
[352733546,1739283044805,-500.0,0.00010958,2]
[352733547,1739283044814,-500.0,0.00010958,2]
[352733548,1739283044823,-500.0,0.00010958,2]
[352733549,1739283044833,-397.98018295,0.00010958,2]
[352733550,1739283044842,-500.0,0.00010958,2]
[352733551,1739283044852,-500.0,0.00010958,2]
[352733552,1739283044862,-500.0,0.00010958,2]
[352733553,1739283044871,-500.0,0.00010958,2]
[352733554,1739283044881,-500.0,0.00010958,2]
[352733555,1739283044892,-500.0,0.00010958,2]
[352733556,1739283044902,-500.0,0.00010958,2]
[352733557,1739283044911,-500.0,0.00010958,2]
[352733558,1739283044920,-500.0,0.00010958,2]
[352733559,1739283044930,-500.0,0.00010958,2]
[352733560,1739283044939,-500.0,0.00010958,2]
[352733561,1739283044948,-500.0,0.00010958,2]
[352733562,1739283044958,-999.07,0.00010958,2]
[352733563,1739283044967,-500.0,0.00010958,2]
[352733564,1739283044976,-500.0,0.00010958,2]
[352733565,1739283044986,-961.83,0.00010958,2]
[352733566,1739283044995,-500.0,0.00010958,2]
[352733567,1739283045004,-500.0,0.00010958,2]
[352733568,1739283045014,-500.0,0.00010958,2]
[352733569,1739283045024,-500.0,0.00010958,2]
[352733570,1739283045033,-500.0,0.00010958,2]
[352733571,1739283045044,-932.98,0.00010958,2]
[352733572,1739283045053,-500.0,0.00010958,2]
[352733573,1739283045062,-500.0,0.00010958,2]
[352733574,1739283045072,-500.0,0.00010958,2]
[352733575,1739283045081,-500.0,0.00010958,2]
[352733576,1739283045090,-662.81,0.00010958,2]
[352733577,1739283045099,-500.0,0.00010958,2]
[352733578,1739283045108,-500.0,0.00010958,2]
[352733579,1739283045118,-500.0,0.00010958,2]
[352733580,1739283045127,-500.0,0.00010958,2]
[352733581,1739283045136,-500.0,0.00010958,2]
[352733582,1739283045145,-500.0,0.00010958,2]
[352733583,1739283045154,-153.96410646,0.00010958,2]
[352733584,1739283045163,-541.66,0.00010958,2]
[352733585,1739283045172,-722.67,0.00010958,2]
[352733586,1739283045181,-500.0,0.00010958,2]
[352733587,1739283045191,-500.0,0.00010958,2]
[352733588,1739283045200,-509.39274232,0.00010958,2]
[352733589,1739283045210,-500.0,0.00010958,2]
[352733590,1739283045219,-500.0,0.00010958,2]
[352733591,1739283045228,-500.0,0.00010958,2]
[352733592,1739283045237,-500.0,0.00010958,2]
[352733593,1739283045247,-500.0,0.00010958,2]
[352733594,1739283045256,-500.0,0.00010958,2]
[352733595,1739283045265,-500.0,0.00010958,2]
[352733596,1739283045274,-500.0,0.00010958,2]
[352733597,1739283045283,-500.0,0.00010958,2]
[352733598,1739283045294,-500.0,0.00010958,2]
[352733599,1739283045303,-1030.45,0.00010958,2]
[352733600,1739283045312,-500.0,0.00010958,2]
[352733601,1739283045322,-500.0,0.00010958,2]
[352733602,1739283045331,-500.0,0.00010958,2]
[352733603,1739283045340,-500.0,0.00010958,2]
[352733604,1739283045349,-500.0,0.00010958,2]
[352733605,1739283045359,-500.0,0.00010958,2]
[352733606,1739283045368,-500.0,0.00010958,2]
[352733607,1739283045377,-500.0,0.00010958,2]
[352733608,1739283045386,-835.87,0.00010958,2]
[352733610,1739283045396,-750.85,0.00010958,2]
[352733611,1739283045405,-500.0,0.00010958,2]
[352733612,1739283045414,-500.0,0.00010958,2]
[352733613,1739283045423,-500.0,0.00010958,2]
[352733614,1739283045432,-500.0,0.00010958,2]
[352733615,1739283045441,-500.0,0.00010958,2]
[352733616,1739283045451,-500.0,0.00010958,2]
[352733617,1739283045459,-500.0,0.00010958,2]
[352733618,1739283045469,-500.0,0.00010958,2]
[352733619,1739283045478,-500.0,0.00010958,2]
[352733620,1739283045487,-500.0,0.00010958,2]
[352733621,1739283045496,-500.0,0.00010958,2]
[352733622,1739283045505,-500.0,0.00010958,2]
[352733623,1739283045514,-500.0,0.00010958,2]
[352733624,1739283045523,-500.0,0.00010958,2]
[352733625,1739283045532,-500.0,0.00010958,2]
[352733627,1739283045543,-500.0,0.00010958,2]
[352733629,1739283045552,-500.0,0.00010958,2]
[352733630,1739283045562,-500.0,0.00010958,2]
[352733631,1739283045571,-500.0,0.00010958,2]
[352733632,1739283045580,-500.0,0.00010958,2]
[352733633,1739283045589,-500.0,0.00010958,2]
[352733634,1739283045598,-500.92459981,0.00010958,2]
[352733635,1739283045612,-500.0,0.00010958,2]
[352733636,1739283045622,-500.0,0.00010958,2]
[352733637,1739283045631,-1038.04,0.00010958,2]
[352733638,1739283045640,-500.0,0.00010958,2]
[352733639,1739283045651,-500.0,0.00010958,2]
[352733640,1739283045661,-500.0,0.00010958,2]
[352733641,1739283045670,-500.0,0.00010958,2]
[352733642,1739283045679,-330.30072323,0.00010958,2]
[352733643,1739283045689,-500.0,0.00010958,2]
[352733644,1739283045700,-573.80723182,0.00010958,2]
[352733645,1739283045710,-655.85,0.00010958,2]
[352733646,1739283045719,-614.6645642,0.00010958,2]
[352733647,1739283045728,-500.0,0.00010958,2]
[352733648,1739283045737,-500.0,0.00010958,2]
[352733650,1739283045746,-500.0,0.00010958,2]
[352733652,1739283045755,-284.21001175,0.00010958,2]
[352733654,1739283045764,-500.0,0.00010958,2]
[352733655,1739283045774,-500.0,0.00010958,2]
[352733656,1739283045783,-500.0,0.00010958,2]
[352733657,1739283045796,-500.0,0.00010958,2]
[352733658,1739283045805,-626.7,0.00010958,2]
[352733659,1739283045814,-500.0,0.00010958,2]
[352733660,1739283045823,-500.0,0.00010958,2]
[352733661,1739283045832,-500.0,0.00010958,2]
[352733662,1739283045842,-500.0,0.00010958,2]
[352733663,1739283045851,-500.0,0.00010958,2]
[352733664,1739283045860,-500.0,0.00010958,2]
[352733665,1739283045869,-581.18,0.00010958,2]
[352733666,1739283045879,-500.0,0.00010958,2]
[352733667,1739283045889,-500.0,0.00010958,2]
[352733668,1739283045899,-650.34,0.00010958,2]
[352733669,1739283045909,-500.0,0.00010958,2]
[352733670,1739283045918,-500.0,0.00010958,2]
[352733671,1739283045928,-500.0,0.00010958,2]
[352733672,1739283045937,-500.0,0.00010958,2]
[352733673,1739283045947,-210.83103395,0.00010958,2]
[352733674,1739283045957,-500.0,0.00010958,2]
[352733675,1739283045967,-503.00500572,0.00010958,2]
[352733676,1739283045977,-500.0,0.00010958,2]
[352733677,1739283045986,-557.62,0.00010958,2]
[352733678,1739283045996,-500.0,0.00010958,2]
[352733679,1739283046006,-500.0,0.00010958,2]
[352733680,1739283046016,-500.0,0.00010958,2]
[352733681,1739283046025,-1181.79,0.00010958,2]
[352733682,1739283046035,-552.27,0.00010958,2]
[352733683,1739283046046,-500.0,0.00010958,2]
[352733684,1739283046055,-982.11,0.00010958,2]
[352733685,1739283046065,-500.0,0.00010958,2]
[352733686,1739283046074,-507.11634308,0.00010958,2]
[352733687,1739283046083,-637.32,0.00010958,2]
[352733688,1739283046093,-504.0436052,0.00010958,2]
[352733689,1739283046102,-500.0,0.00010958,2]
[352733690,1739283046111,-500.0,0.00010958,2]
[352733691,1739283046121,-500.0,0.00010958,2]
[352733692,1739283046130,-500.0,0.00010958,2]
[352733693,1739283046140,-500.0,0.00010958,2]
[352733694,1739283046149,-500.0,0.00010958,2]
[352733695,1739283046158,-500.0,0.00010958,2]
[352733696,1739283046168,-500.0,0.00010958,2]
[352733697,1739283046179,-500.0,0.00010958,2]
[352733698,1739283046188,-500.0,0.00010958,2]
[352733699,1739283046197,-621.63,0.00010958,2]
[352733700,1739283046208,-500.0,0.00010958,2]
[352733701,1739283046217,-720.74,0.00010958,2]
[352733702,1739283046226,-500.0,0.00010958,2]
[352733703,1739283046235,-500.0,0.00010958,2]
[352733704,1739283046245,-500.0,0.00010958,2]
[352733705,1739283046254,-500.0,0.00010958,2]
[352733706,1739283046264,-500.0,0.00010958,2]
[352733707,1739283046273,-756.12,0.00010958,2]
[352733708,1739283046283,-500.0,0.00010958,2]
[352733709,1739283046295,-500.0,0.00010958,2]
[352733710,1739283046305,-500.0,0.00010958,2]
[352733711,1739283046315,-512.73302451,0.00010958,2]
[352733712,1739283046324,-540.21,0.00010958,2]
[352733713,1739283046334,-346.18386486,0.00010958,2]
[352733714,1739283046344,-500.0,0.00010958,2]
[352733715,1739283046354,-500.0,0.00010958,2]
[352733716,1739283046364,-500.0,0.00010958,2]
[352733717,1739283046373,-500.0,0.00010958,2]
[352733718,1739283046383,-500.0,0.00010958,2]
[352733719,1739283046392,-500.0,0.00010958,2]
[352733720,1739283046402,-500.35949503,0.00010958,2]
[352733721,1739283046411,-500.0,0.00010958,2]
[352733722,1739283046421,-500.0,0.00010958,2]
[352733723,1739283046431,-500.0,0.00010958,2]
[352733724,1739283046440,-500.0,0.00010958,2]
[352733725,1739283046450,-500.0,0.00010958,2]
[352733726,1739283046459,-500.0,0.00010958,2]
[352733727,1739283046469,-401.29955075,0.00010958,2]
[352733728,1739283046479,-500.0,0.00010958,2]
[352733729,1739283046488,-500.0,0.00010958,2]
[352733731,1739283046497,-1099.61,0.00010958,2]
[352733733,1739283046507,-500.0,0.00010958,2]
[352733735,1739283046516,-503.6412976,0.00010958,2]
[352733736,1739283046525,-500.0,0.00010958,2]
[352733737,1739283046535,-543.05,0.00010958,2]
[352733738,1739283046546,-500.34793992,0.00010958,2]
[352733739,1739283046555,-735.96,0.00010958,2]
[352733740,1739283046566,-1136.7,0.00010958,2]
[352733741,1739283046575,-265.27315049,0.00010958,2]
[352733742,1739283046585,-500.0,0.00010958,2]
[352733743,1739283046595,-500.0,0.00010958,2]
[352733744,1739283046604,-500.0,0.00010958,2]
[352733745,1739283046616,-500.0,0.00010958,2]
[352733746,1739283046625,-500.0,0.00010958,2]
[352733747,1739283046635,-500.0,0.00010958,2]
[352733748,1739283046644,-500.0,0.00010958,2]
[352733749,1739283046655,-500.0,0.00010958,2]
[352733750,1739283046665,-500.0,0.00010958,2]
[352733751,1739283046675,-875.16,0.00010958,2]
[352733752,1739283046684,-500.0,0.00010958,2]
[352733753,1739283046695,-500.0,0.00010958,2]
[352733754,1739283046704,-500.0,0.00010958,2]
[352733755,1739283046715,-580.72,0.00010958,2]
[352733756,1739283046724,-500.0,0.00010958,2]
[352733757,1739283046733,-500.0,0.00010958,2]
[352733758,1739283046743,-599.48558917,0.00010958,2]
[352733759,1739283046752,-516.71843319,0.00010958,2]
[352733760,1739283046762,-500.0,0.00010958,2]
[352733761,1739283046771,-1187.47,0.00010958,2]
[352733762,1739283046780,-503.28535827,0.00010958,2]
[352733763,1739283046791,-500.0,0.00010958,2]
[352733764,1739283046801,-500.0,0.00010958,2]
[352733765,1739283046810,-639.93947609,0.00010958,2]
[352733766,1739283046819,-500.0,0.00010958,2]
[352733767,1739283046828,-1053.93,0.00010958,2]
[352733768,1739283046838,-635.88,0.00010958,2]
[352733769,1739283046847,-500.0,0.00010958,2]
[352733770,1739283046857,-1017.56,0.00010958,2]
[352733771,1739283046866,-683.09,0.00010958,2]
[352733772,1739283046875,-1174.81,0.00010958,2]
[352733773,1739283046885,-500.0,0.00010958,2]
[352733774,1739283046894,-500.0,0.00010958,2]
[352733775,1739283046904,-500.0,0.00010958,2]
[352733776,1739283046914,-500.0,0.00010958,2]
[352733777,1739283046923,-333.84367106,0.00010958,2]
[352733778,1739283046933,-641.21,0.00010958,2]
[352733779,1739283046942,-515.4,0.00010958,2]
[352733780,1739283046952,-500.0,0.00010958,2]
[352733781,1739283046962,-500.0,0.00010958,2]
[352733782,1739283046971,-811.4,0.00010958,2]
[352733783,1739283046981,-539.75301084,0.00010958,2]
[352733784,1739283046991,-500.0,0.00010958,2]
[352733785,1739283047001,-500.0,0.00010958,2]
[352733786,1739283047010,-500.0,0.00010958,2]
[352733787,1739283047020,-500.0,0.00010958,2]
[352733788,1739283047030,-2279.79,0.00010958,2]
[352733789,1739283047041,-500.0,0.00010958,2]
[352733790,1739283047051,-500.0,0.00010958,2]
[352733791,1739283047061,-500.0,0.00010958,2]
[352733792,1739283047071,-1026.36,0.00010958,2]
[352733793,1739283047081,-500.0,0.00010958,2]
[352733794,1739283047091,-500.0,0.00010958,2]
[352733795,1739283047101,-500.0,0.00010958,2]
[352733796,1739283047111,-544.63,0.00010958,2]
[352733797,1739283047121,-160.439547,0.00010958,2]
[352733798,1739283047133,-1181.86,0.00010958,2]
[352733799,1739283047143,-500.0,0.00010958,2]
[352733800,1739283047155,-500.0,0.00010958,2]
[352733801,1739283047165,-500.0,0.00010958,2]
[352733802,1739283047175,-500.0,0.00010958,2]
[352733803,1739283047184,-500.0,0.00010958,2]
[352733804,1739283047194,-538.30403397,0.00010958,2]
[352733805,1739283047204,-678.67,0.00010958,2]
[352733806,1739283047215,-500.0,0.00010958,2]
[352733807,1739283047224,-500.0,0.00010958,2]
[352733808,1739283047233,-500.0,0.00010958,2]
[352733809,1739283047243,-500.0,0.00010958,2]
[352733810,1739283047252,-500.0,0.00010958,2]
[352733811,1739283047262,-1235.55,0.00010958,2]
[352733812,1739283047270,-500.0,0.00010958,2]
[352733813,1739283047279,-509.06234011,0.00010958,2]
[352733814,1739283047288,-500.0,0.00010958,2]
[352733815,1739283047298,-500.0,0.00010958,2]
[352733816,1739283047308,-500.0,0.00010958,2]
[352733817,1739283047317,-512.01006996,0.00010958,2]
[352733818,1739283047328,-2015.94,0.00010958,2]
[352733819,1739283047338,-500.0,0.00010958,2]
[352733820,1739283047348,-500.0,0.00010958,2]
[352733821,1739283047358,-500.0,0.00010958,2]
[352733822,1739283047367,-418.79701692,0.00010958,2]
[352733823,1739283047378,-638.72,0.00010958,2]
[352733824,1739283047387,-500.0,0.00010958,2]
[352733825,1739283047397,-502.89026622,0.00010958,2]
[352733826,1739283047406,-500.0,0.00010958,2]
[352733827,1739283047416,-500.0,0.00010958,2]
[352733828,1739283047425,-500.0,0.00010958,2]
[352733829,1739283047434,-500.0,0.00010958,2]
[352733830,1739283047444,-500.0,0.00010958,2]
[352733831,1739283047453,-500.0,0.00010958,2]
[352733832,1739283047463,-884.07,0.00010958,2]
[352733833,1739283047472,-1344.05,0.00010958,2]
[352733834,1739283047481,-500.0,0.00010958,2]
[352733835,1739283047491,-500.0,0.00010958,2]
[352733836,1739283047500,-500.0,0.00010958,2]
[352733837,1739283047509,-500.0,0.00010958,2]
[352733838,1739283047519,-500.0,0.00010958,2]
[352733839,1739283047528,-500.0,0.00010958,2]
[352733840,1739283047538,-500.0,0.00010958,2]
[352733841,1739283047548,-500.0,0.00010958,2]
[352733842,1739283047557,-1667.76,0.00010958,2]
[352733843,1739283047567,-157.862353,0.00010958,2]
[352733844,1739283047576,-500.0,0.00010958,2]
[352733845,1739283047585,-515.7,0.00010958,2]
[352733846,1739283047595,-522.2,0.00010958,2]
[352733847,1739283047605,-497.54411396,0.00010958,2]
[352733848,1739283047617,-500.0,0.00010958,2]
[352733849,1739283047626,-500.0,0.00010958,2]
[352733850,1739283047635,-1113.72,0.00010958,2]
[352733851,1739283047644,-500.0,0.00010958,2]
[352733852,1739283047654,-503.89094402,0.00010958,2]
[352733853,1739283047663,-500.0,0.00010958,2]
[352733854,1739283047673,-757.59,0.00010958,2]
[352733855,1739283047682,-500.0,0.00010958,2]
[352733856,1739283047692,-1179.03,0.00010958,2]
[352733857,1739283047702,-500.0,0.00010958,2]
[352733858,1739283047711,-632.17552215,0.00010958,2]
[352733859,1739283047720,-169.457292,0.00010958,2]
[352733860,1739283047730,-808.33,0.00010958,2]
[352733861,1739283047740,-1282.85,0.00010958,2]
[352733862,1739283047750,-500.0,0.00010958,2]
[352733863,1739283047759,-500.0,0.00010958,2]
[352733864,1739283047769,-1795.37,0.00010958,2]
[352733865,1739283047780,-500.0,0.00010958,2]
[352733866,1739283047791,-500.0,0.00010958,2]
[352733867,1739283047801,-1850.76,0.00010958,2]
[352733868,1739283047811,-603.62,0.00010958,2]
[352733869,1739283047821,-557.77829632,0.00010958,2]
[352733870,1739283047831,-500.0,0.00010958,2]
[352733871,1739283047840,-500.0,0.00010958,2]
[352733872,1739283047850,-500.0,0.00010958,2]
[352733873,1739283047860,-500.0,0.00010958,2]
[352733874,1739283047870,-500.0,0.00010958,2]
[352733875,1739283047879,-500.0,0.00010958,2]
[352733876,1739283047889,-500.0,0.00010958,2]
[352733877,1739283047898,-500.0,0.00010958,2]
[352733878,1739283047908,-325.88910065,0.00010958,2]
[352733879,1739283047918,-500.0,0.00010958,2]
[352733880,1739283047928,-1151.05,0.00010958,2]
[352733881,1739283047937,-1119.24,0.00010958,2]
[352733882,1739283047947,-500.0,0.00010958,2]
[352733883,1739283047957,-500.0,0.00010958,2]
[352733884,1739283047967,-500.0,0.00010958,2]
[352733885,1739283047977,-500.0,0.00010958,2]
[352733886,1739283048180,-500.0,0.00010958,2]
[352733887,1739283048191,-1347.78,0.00010958,2]
[352733888,1739283048201,-461.00419305,0.00010958,2]
[352733889,1739283048211,-500.0,0.00010958,2]
[352733890,1739283048223,-819.33,0.00010958,2]
[352733891,1739283048233,-500.0,0.00010958,2]
[352733892,1739283048243,-1536.44,0.00010958,2]
[352733893,1739283048253,-892.03,0.00010958,2]
[352733894,1739283048263,-500.0,0.00010958,2]
[352733895,1739283048273,-500.0,0.00010958,2]
[352733896,1739283048284,-500.0,0.00010958,2]
[352733897,1739283048295,-500.0,0.00010958,2]
[352733898,1739283048304,-2017.38,0.00010958,2]
[352733899,1739283048315,-500.0,0.00010958,2]
[352733900,1739283048324,-500.0,0.00010958,2]
[352733901,1739283048334,-500.0,0.00010958,2]
[352733902,1739283048345,-948.75,0.00010958,2]
[352733903,1739283048356,-500.0,0.00010958,2]
[352733904,1739283048366,-526.05,0.00010958,2]
[352733905,1739283048376,-500.0,0.00010958,2]
[352733906,1739283048387,-500.0,0.00010958,2]
[352733907,1739283048397,-582.46,0.00010958,2]
[352733908,1739283048406,-1725.88,0.00010958,2]
[352733909,1739283048416,-683.75,0.00010958,2]
[352733910,1739283048427,-500.0,0.00010958,2]
[352733911,1739283048437,-657.71,0.00010958,2]
[352733912,1739283048447,-500.0,0.00010958,2]
[352733913,1739283048457,-2105.16,0.00010958,2]
[352733914,1739283048467,-500.0,0.00010958,2]